[Event "Early-Titled-Tuesday-Blitz-October-03-2023"]
[Site "Chess.com"]
[Date "2023.10.03"]
[Round "11"]
[White "jaskol95"]
[Black "Actuary44"]
[Result "1-0"]
[WhiteElo "2636"]
[BlackElo "2512"]
[TimeControl "180+1"]
[EndTime "10:08:33 PDT"]
[Termination "jaskol95 won by checkmate"]

1. d4 {[%clk 0:03:00.9]} 1... Nf6 {[%clk 0:03:00.3]} 2. Nc3 {[%clk 0:03:01.2]}
2... g6 {[%clk 0:03:00.8]} 3. e4 {[%clk 0:03:00.6]} 3... d6 {[%clk 0:03:00.9]}
4. Bf4 {[%clk 0:02:59.1]} 4... Bg7 {[%clk 0:03:01.4]} 5. Qd2 {[%clk 0:02:59.4]}
5... O-O {[%clk 0:03:01.8]} 6. O-O-O {[%clk 0:02:59.1]} 6... c6 {[%clk
0:03:02.3]} 7. Bh6 {[%clk 0:02:52.7]} 7... b5 {[%clk 0:03:02.8]} 8. f3 {[%clk
0:02:52.9]} 8... b4 {[%clk 0:03:02.1]} 9. Nce2 {[%clk 0:02:53]} 9... Be6 {[%clk
0:02:58.3]} 10. Kb1 {[%clk 0:02:50.1]} 10... a5 {[%clk 0:02:58.3]} 11. h4 {[%clk
0:02:48.4]} 11... a4 {[%clk 0:02:58]} 12. h5 {[%clk 0:02:26.6]} 12... b3 {[%clk
0:02:57.1]} 13. hxg6 {[%clk 0:02:26.8]} 13... bxc2+ {[%clk 0:02:43.4]} 14. Qxc2
{[%clk 0:02:20.4]} 14... fxg6 {[%clk 0:02:39.6]} 15. Bxg7 {[%clk 0:02:20.2]}
15... Kxg7 {[%clk 0:02:40.5]} 16. Qd2 {[%clk 0:02:10.5]} 16... Kg8 {[%clk
0:02:34.9]} 17. Nc3 {[%clk 0:02:00.8]} 17... Na6 {[%clk 0:02:32.6]} 18. Qh6
{[%clk 0:01:53]} 18... Rf7 {[%clk 0:02:28.4]} 19. Nh3 {[%clk 0:01:50]} 19...
Bxh3 {[%clk 0:02:16.1]} 20. Qxh3 {[%clk 0:01:45.9]} 20... a3 {[%clk 0:02:13.3]}
21. e5 {[%clk 0:01:01]} 21... Nh5 {[%clk 0:02:05.8]} 22. Ne4 {[%clk 0:00:45.3]}
22... Qb6 {[%clk 0:00:57.4]} 23. b3 {[%clk 0:00:30.4]} 23... Qb4 {[%clk
0:00:49]} 24. Bxa6 {[%clk 0:00:23.6]} 24... Rxa6 {[%clk 0:00:47.4]} 25. Qc8+
{[%clk 0:00:23.3]} 25... Kg7 {[%clk 0:00:44]} 26. Qxa6 {[%clk 0:00:23.5]} 26...
d5 {[%clk 0:00:43.5]} 27. Nc5 {[%clk 0:00:06.6]} 27... Nf4 {[%clk 0:00:33.7]}
28. Qf1 {[%clk 0:00:02.2]} 28... Rf8 {[%clk 0:00:17.2]} 29. Qf2 {[%clk
0:00:02.6]} 29... Rb8 {[%clk 0:00:17.3]} 30. Qc2 {[%clk 0:00:02.9]} 30... Kg8
{[%clk 0:00:14.7]} 31. Nd3 {[%clk 0:00:03.3]} 31... Qxd4 {[%clk 0:00:12.8]} 32.
Nxf4 {[%clk 0:00:03.8]} 32... Qxf4 {[%clk 0:00:13.5]} 33. Rde1 {[%clk
0:00:03.7]} 33... Qd4 {[%clk 0:00:10.2]} 34. Rd1 {[%clk 0:00:03.9]} 34... Qxe5
{[%clk 0:00:10.1]} 35. Rhe1 {[%clk 0:00:04.2]} 35... Qf6 {[%clk 0:00:10.1]} 36.
Re2 {[%clk 0:00:04.3]} 36... e6 {[%clk 0:00:09]} 37. Rde1 {[%clk 0:00:04.3]}
37... Re8 {[%clk 0:00:05.1]} 38. Qxc6 {[%clk 0:00:04.2]} 38... Kf7 {[%clk
0:00:05.1]} 39. Qd7+ {[%clk 0:00:04.3]} 39... Re7 {[%clk 0:00:05.5]} 40. Qc6
{[%clk 0:00:04.6]} 40... Qf5+ {[%clk 0:00:04.5]} 41. Qc2 {[%clk 0:00:04.8]}
41... Qf6 {[%clk 0:00:04.6]} 42. Qc1 {[%clk 0:00:04.9]} 42... d4 {[%clk
0:00:04.9]} 43. Qxa3 {[%clk 0:00:05.1]} 43... d3 {[%clk 0:00:05.1]} 44. Rd2
{[%clk 0:00:05.7]} 44... Qc3 {[%clk 0:00:04.4]} 45. Qb2 {[%clk 0:00:06]} 45...
Qb4 {[%clk 0:00:03.7]} 46. Red1 {[%clk 0:00:05.5]} 46... Rd7 {[%clk 0:00:03.2]}
47. Rxd3 {[%clk 0:00:05.3]} 47... Rxd3 {[%clk 0:00:03.7]} 48. Rxd3 {[%clk
0:00:05.9]} 48... Qe1+ {[%clk 0:00:04.4]} 49. Kc2 {[%clk 0:00:06.4]} 49... Qe2+
{[%clk 0:00:04.8]} 50. Kc3 {[%clk 0:00:06.2]} 50... Qe5+ {[%clk 0:00:05.1]} 51.
Kc2 {[%clk 0:00:06.8]} 51... Qe2+ {[%clk 0:00:05.3]} 52. Rd2 {[%clk 0:00:07.4]}
52... Qb5 {[%clk 0:00:04]} 53. Qd4 {[%clk 0:00:07]} 53... Qc6+ {[%clk
0:00:04.2]} 54. Qc3 {[%clk 0:00:07]} 54... Qb5 {[%clk 0:00:03.5]} 55. Qd3 {[%clk
0:00:07.3]} 55... Qc5+ {[%clk 0:00:03.5]} 56. Kb2 {[%clk 0:00:07.5]} 56... Qe5+
{[%clk 0:00:03.3]} 57. Qd4 {[%clk 0:00:08.2]} 57... Qe1 {[%clk 0:00:03.7]} 58.
Qd7+ {[%clk 0:00:08.3]} 58... Kf6 {[%clk 0:00:04.3]} 59. Qd8+ {[%clk 0:00:08.6]}
59... Kf7 {[%clk 0:00:04.6]} 60. Rd7# {[%clk 0:00:08.5]} 1-0

[Event "Early-Titled-Tuesday-Blitz-October-03-2023"]
[Site "Chess.com"]
[Date "2023.10.03"]
[Round "11"]
[White "azikom"]
[Black "RETURNOFTHELAGGER"]
[Result "1/2-1/2"]
[WhiteElo "2589"]
[BlackElo "2666"]
[TimeControl "180+1"]
[EndTime "10:08:40 PDT"]
[Termination "Game drawn - insufficient material"]

1. d4 {[%clk 0:02:59.2]} 1... Nf6 {[%clk 0:02:58.3]} 2. c4 {[%clk 0:02:58.9]}
2... g6 {[%clk 0:02:58.3]} 3. Nc3 {[%clk 0:02:59]} 3... d5 {[%clk 0:02:57.9]} 4.
Bg5 {[%clk 0:02:58.1]} 4... Ne4 {[%clk 0:02:53.9]} 5. Nxe4 {[%clk 0:02:56.9]}
5... dxe4 {[%clk 0:02:54.1]} 6. e3 {[%clk 0:02:56.3]} 6... Bg7 {[%clk
0:02:52.4]} 7. Ne2 {[%clk 0:02:55.3]} 7... O-O {[%clk 0:02:50.5]} 8. Qd2 {[%clk
0:02:55]} 8... c5 {[%clk 0:02:49]} 9. d5 {[%clk 0:02:54.7]} 9... Na6 {[%clk
0:02:46.7]} 10. Nc3 {[%clk 0:02:54.3]} 10... f5 {[%clk 0:02:43.4]} 11. Be2
{[%clk 0:02:52]} 11... Nc7 {[%clk 0:02:41.4]} 12. h4 {[%clk 0:02:50.1]} 12... h6
{[%clk 0:02:37]} 13. Bf4 {[%clk 0:02:49.7]} 13... e5 {[%clk 0:02:34.4]} 14. dxe6
{[%clk 0:02:48.1]} 14... Nxe6 {[%clk 0:02:34.1]} 15. Qxd8 {[%clk 0:02:46.6]}
15... Rxd8 {[%clk 0:02:30.6]} 16. Bg3 {[%clk 0:02:45.8]} 16... b6 {[%clk
0:02:29.1]} 17. Rc1 {[%clk 0:02:44.1]} 17... Bb7 {[%clk 0:02:26.6]} 18. Rc2
{[%clk 0:02:35.3]} 18... Kf7 {[%clk 0:02:26.1]} 19. Nb5 {[%clk 0:02:33.4]} 19...
Ke7 {[%clk 0:02:21.9]} 20. O-O {[%clk 0:02:28.3]} 20... Rd7 {[%clk 0:02:18.2]}
21. a3 {[%clk 0:02:12.8]} 21... a6 {[%clk 0:02:18.5]} 22. Nc3 {[%clk 0:02:13]}
22... Rad8 {[%clk 0:02:15]} 23. Na4 {[%clk 0:02:12.4]} 23... Rd2 {[%clk
0:02:10.2]} 24. Rfc1 {[%clk 0:02:08.8]} 24... g5 {[%clk 0:01:18.3]} 25. hxg5
{[%clk 0:02:06.2]} 25... hxg5 {[%clk 0:01:19.2]} 26. b4 {[%clk 0:01:48.7]} 26...
cxb4 {[%clk 0:01:16.2]} 27. axb4 {[%clk 0:01:48.6]} 27... f4 {[%clk 0:01:15]}
28. exf4 {[%clk 0:01:47]} 28... gxf4 {[%clk 0:01:15.9]} 29. Bh4+ {[%clk
0:01:47.1]} 29... Bf6 {[%clk 0:01:13.3]} 30. Bxf6+ {[%clk 0:01:46.9]} 30... Kxf6
{[%clk 0:01:14.2]} 31. Nxb6 {[%clk 0:01:46]} 31... Rxc2 {[%clk 0:00:38.6]} 32.
Rxc2 {[%clk 0:01:45.3]} 32... f3 {[%clk 0:00:39.5]} 33. gxf3 {[%clk 0:01:43.1]}
33... exf3 {[%clk 0:00:39.9]} 34. Bf1 {[%clk 0:01:40]} 34... Nf4 {[%clk
0:00:34.3]} 35. Nd5+ {[%clk 0:01:15.3]} 35... Nxd5 {[%clk 0:00:31.7]} 36. cxd5
{[%clk 0:01:16.2]} 36... Bxd5 {[%clk 0:00:31.5]} 37. Bxa6 {[%clk 0:01:07.1]}
37... Rg8+ {[%clk 0:00:32.1]} 38. Kf1 {[%clk 0:01:03.9]} 38... Rh8 {[%clk
0:00:28.7]} 39. Ke1 {[%clk 0:01:00.6]} 39... Ke5 {[%clk 0:00:26]} 40. Kd2 {[%clk
0:00:29]} 40... Rh2 {[%clk 0:00:24]} 41. Ke3 {[%clk 0:00:26.3]} 41... Rh4 {[%clk
0:00:21.9]} 42. b5 {[%clk 0:00:17.9]} 42... Re4+ {[%clk 0:00:22.4]} 43. Kd2
{[%clk 0:00:16]} 43... Rb4 {[%clk 0:00:18.8]} 44. Kc1 {[%clk 0:00:13.7]} 44...
Kd4 {[%clk 0:00:19.4]} 45. Rb2 {[%clk 0:00:13.2]} 45... Rxb2 {[%clk 0:00:13]}
46. Kxb2 {[%clk 0:00:12.7]} 46... Bc4 {[%clk 0:00:13.9]} 47. Bb7 {[%clk
0:00:07.8]} 47... Bxb5 {[%clk 0:00:11.9]} 48. Bxf3 {[%clk 0:00:07.5]} 48... Ke5
{[%clk 0:00:11.8]} 49. Kc3 {[%clk 0:00:07.5]} 49... Kf4 {[%clk 0:00:12.4]} 50.
Bd1 {[%clk 0:00:07.8]} 50... Be8 {[%clk 0:00:13.2]} 51. Kd2 {[%clk 0:00:08.3]}
51... Bg6 {[%clk 0:00:13.8]} 52. Ke1 {[%clk 0:00:08.9]} 52... Bf5 {[%clk
0:00:14.1]} 53. Be2 {[%clk 0:00:09.4]} 53... Bc8 {[%clk 0:00:14.7]} 54. Bf1
{[%clk 0:00:10]} 54... Bg4 {[%clk 0:00:15.1]} 55. Bg2 {[%clk 0:00:10.3]} 55...
Bc8 {[%clk 0:00:15.6]} 56. Ke2 {[%clk 0:00:10.4]} 56... Bg4+ {[%clk 0:00:15.5]}
57. f3 {[%clk 0:00:09.9]} 57... Be6 {[%clk 0:00:16.4]} 58. Kf2 {[%clk
0:00:10.1]} 58... Bd5 {[%clk 0:00:16.7]} 59. Bf1 {[%clk 0:00:10.6]} 59... Bxf3
{[%clk 0:00:17.6]} 1/2-1/2

[Event "Early-Titled-Tuesday-Blitz-October-03-2023"]
[Site "Chess.com"]
[Date "2023.10.03"]
[Round "11"]
[White "CristianS27"]
[Black "AsaHoffmann"]
[Result "1-0"]
[WhiteElo "2499"]
[BlackElo "2379"]
[TimeControl "180+1"]
[EndTime "10:08:40 PDT"]
[Termination "CristianS27 won on time"]

1. e4 {[%clk 0:03:00.9]} 1... d6 {[%clk 0:02:56.8]} 2. d4 {[%clk 0:02:57.8]}
2... Nf6 {[%clk 0:02:47.9]} 3. Nc3 {[%clk 0:02:37.3]} 3... c6 {[%clk 0:02:46.7]}
4. Nf3 {[%clk 0:02:36.8]} 4... Bg4 {[%clk 0:02:45.6]} 5. h3 {[%clk 0:02:32.7]}
5... Bh5 {[%clk 0:02:44.7]} 6. Be2 {[%clk 0:02:26.6]} 6... e6 {[%clk 0:02:44.2]}
7. O-O {[%clk 0:02:26.1]} 7... d5 {[%clk 0:02:40.1]} 8. exd5 {[%clk 0:02:26.1]}
8... cxd5 {[%clk 0:02:39.6]} 9. Ne5 {[%clk 0:02:25.9]} 9... Bxe2 {[%clk
0:02:38.3]} 10. Qxe2 {[%clk 0:02:26.8]} 10... Nc6 {[%clk 0:02:35.9]} 11. Nxc6
{[%clk 0:02:15]} 11... bxc6 {[%clk 0:02:35.3]} 12. Na4 {[%clk 0:02:15.9]} 12...
Qa5 {[%clk 0:02:26.6]} 13. b3 {[%clk 0:02:14.8]} 13... a6 {[%clk 0:02:22.3]} 14.
Bd2 {[%clk 0:02:13]} 14... Qb5 {[%clk 0:02:22]} 15. Qf3 {[%clk 0:02:04.2]} 15...
Be7 {[%clk 0:02:17.3]} 16. Bg5 {[%clk 0:01:59.1]} 16... O-O {[%clk 0:02:16.6]}
17. Rfe1 {[%clk 0:01:49.6]} 17... Rfe8 {[%clk 0:02:15.9]} 18. c3 {[%clk
0:01:48]} 18... a5 {[%clk 0:02:10.4]} 19. Bxf6 {[%clk 0:01:43.2]} 19... Bxf6
{[%clk 0:02:08.5]} 20. Nc5 {[%clk 0:01:43.8]} 20... Be7 {[%clk 0:02:04.2]} 21.
Nd3 {[%clk 0:01:37.9]} 21... c5 {[%clk 0:02:03.5]} 22. Nxc5 {[%clk 0:01:22.4]}
22... Bxc5 {[%clk 0:02:02.9]} 23. dxc5 {[%clk 0:01:23]} 23... Qxc5 {[%clk
0:02:02.8]} 24. c4 {[%clk 0:01:22.1]} 24... d4 {[%clk 0:01:52.1]} 25. Rad1
{[%clk 0:01:17.6]} 25... e5 {[%clk 0:01:49.6]} 26. Qe4 {[%clk 0:01:15.8]} 26...
h6 {[%clk 0:01:45]} 27. h4 {[%clk 0:01:15.9]} 27... a4 {[%clk 0:01:43.9]} 28.
Rd3 {[%clk 0:01:15.6]} 28... axb3 {[%clk 0:01:42.8]} 29. axb3 {[%clk 0:01:16.5]}
29... Rab8 {[%clk 0:01:38.6]} 30. Rg3 {[%clk 0:01:14.9]} 30... Qe7 {[%clk
0:01:24.7]} 31. h5 {[%clk 0:01:10.9]} 31... Qe6 {[%clk 0:01:20.2]} 32. Ra1
{[%clk 0:01:05.4]} 32... f5 {[%clk 0:01:16.3]} 33. Qd3 {[%clk 0:00:51.2]} 33...
Rb7 {[%clk 0:01:14]} 34. Rg6 {[%clk 0:00:48.8]} 34... Qd7 {[%clk 0:01:06.5]} 35.
Raa6 {[%clk 0:00:41.7]} 35... e4 {[%clk 0:01:04.7]} 36. Qg3 {[%clk 0:00:42.2]}
36... d3 {[%clk 0:01:02.8]} 37. Rad6 {[%clk 0:00:42.1]} 37... Qe7 {[%clk
0:00:49.6]} 38. Rxh6 {[%clk 0:00:28.9]} 38... Rd7 {[%clk 0:00:48.7]} 39. c5
{[%clk 0:00:20.6]} 39... d2 {[%clk 0:00:43]} 40. Rhg6 {[%clk 0:00:04]} 40...
d1=Q+ {[%clk 0:00:37.8]} 41. Rxd1 {[%clk 0:00:04.9]} 41... Rxd1+ {[%clk
0:00:37.1]} 42. Kh2 {[%clk 0:00:05.8]} 42... Qe5 {[%clk 0:00:11.8]} 43. c6
{[%clk 0:00:01.9]} 43... Qxg3+ {[%clk 0:00:10.8]} 44. Kxg3 {[%clk 0:00:02.8]}
44... Rc1 {[%clk 0:00:10.1]} 45. h6 {[%clk 0:00:02.6]} 45... Rc8 {[%clk
0:00:08.8]} 46. Rxg7+ {[%clk 0:00:02]} 46... Kh8 {[%clk 0:00:09]} 47. Rf7 {[%clk
0:00:02.5]} 47... R1xc6 {[%clk 0:00:07.8]} 48. Rxf5 {[%clk 0:00:02.9]} 48...
Rxh6 {[%clk 0:00:07.3]} 49. Re5 {[%clk 0:00:03.4]} 49... Rg6+ {[%clk 0:00:05.8]}
50. Kf4 {[%clk 0:00:03.8]} 50... Rf8+ {[%clk 0:00:05.5]} 51. Ke3 {[%clk
0:00:04]} 51... Rg4 {[%clk 0:00:04.3]} 52. b4 {[%clk 0:00:03.7]} 52... Rxg2
{[%clk 0:00:03.3]} 53. Rxe4 {[%clk 0:00:03.7]} 53... Rg1 {[%clk 0:00:03.2]} 54.
f4 {[%clk 0:00:02]} 54... Rb1 {[%clk 0:00:02.7]} 55. Kf3 {[%clk 0:00:01.6]}
55... Rb8 {[%clk 0:00:02.5]} 56. Kg4 {[%clk 0:00:01.6]} 56... R1xb4 {[%clk
0:00:02.1]} 57. Re5 {[%clk 0:00:02.3]} 57... Kg7 {[%clk 0:00:02.1]} 58. Rh5
{[%clk 0:00:02.8]} 58... Kg6 {[%clk 0:00:01.8]} 59. Rg5+ {[%clk 0:00:03.7]}
59... Kf6 {[%clk 0:00:01.6]} 60. Re5 {[%clk 0:00:04.4]} 1-0

[Event "Early-Titled-Tuesday-Blitz-October-03-2023"]
[Site "Chess.com"]
[Date "2023.10.03"]
[Round "11"]
[White "Kielinkei"]
[Black "zozik"]
[Result "0-1"]
[WhiteElo "2456"]
[BlackElo "2354"]
[TimeControl "180+1"]
[EndTime "10:08:43 PDT"]
[Termination "zozik won on time"]

1. c4 {[%clk 0:03:00.9]} 1... Nf6 {[%clk 0:02:55.8]} 2. g3 {[%clk 0:03:00.3]}
2... c5 {[%clk 0:02:55.7]} 3. Bg2 {[%clk 0:03:00.5]} 3... Nc6 {[%clk 0:02:56.4]}
4. e4 {[%clk 0:03:00]} 4... d6 {[%clk 0:02:54.8]} 5. Ne2 {[%clk 0:03:00.4]} 5...
e5 {[%clk 0:02:54.8]} 6. O-O {[%clk 0:03:00.2]} 6... g6 {[%clk 0:02:54.3]} 7. d3
{[%clk 0:03:00.7]} 7... Bg7 {[%clk 0:02:54.3]} 8. Nbc3 {[%clk 0:03:00.8]} 8...
O-O {[%clk 0:02:54.7]} 9. f4 {[%clk 0:03:01.5]} 9... Nd4 {[%clk 0:02:54.2]} 10.
Nxd4 {[%clk 0:02:55.2]} 10... cxd4 {[%clk 0:02:52.8]} 11. Nd5 {[%clk 0:02:55.3]}
11... Nxd5 {[%clk 0:02:52.6]} 12. cxd5 {[%clk 0:02:54.5]} 12... f5 {[%clk
0:02:43.6]} 13. fxe5 {[%clk 0:02:52]} 13... Bxe5 {[%clk 0:02:34.8]} 14. Bh6
{[%clk 0:02:46.5]} 14... Rf7 {[%clk 0:02:33.8]} 15. Qd2 {[%clk 0:02:42.7]} 15...
Bd7 {[%clk 0:02:32.2]} 16. Rac1 {[%clk 0:02:33.4]} 16... Rc8 {[%clk 0:02:31.9]}
17. Rxc8 {[%clk 0:02:31.5]} 17... Qxc8 {[%clk 0:02:31.3]} 18. Rc1 {[%clk
0:02:17.3]} 18... Qd8 {[%clk 0:02:29]} 19. Bg5 {[%clk 0:02:00.1]} 19... Qb6
{[%clk 0:02:24.2]} 20. b3 {[%clk 0:01:52]} 20... fxe4 {[%clk 0:02:21.8]} 21.
Bxe4 {[%clk 0:01:49.2]} 21... Bh3 {[%clk 0:02:17]} 22. Bg2 {[%clk 0:01:39.4]}
22... Bf5 {[%clk 0:02:12.8]} 23. Rf1 {[%clk 0:01:05.9]} 23... Qb5 {[%clk
0:02:06.1]} 24. Be4 {[%clk 0:01:04.8]} 24... Bxe4 {[%clk 0:02:03.8]} 25. Rxf7
{[%clk 0:01:04.2]} 25... Kxf7 {[%clk 0:01:46.7]} 26. dxe4 {[%clk 0:01:04.5]}
26... Qc5 {[%clk 0:01:43]} 27. Kg2 {[%clk 0:00:53.9]} 27... Qc3 {[%clk
0:01:38.5]} 28. Qxc3 {[%clk 0:00:40.8]} 28... dxc3 {[%clk 0:01:39.4]} 29. Kf3
{[%clk 0:00:40.2]} 29... Bf6 {[%clk 0:01:15.8]} 30. Bc1 {[%clk 0:00:36.3]} 30...
b5 {[%clk 0:01:04.5]} 31. Ba3 {[%clk 0:00:26.2]} 31... a5 {[%clk 0:00:55.4]} 32.
Ke2 {[%clk 0:00:09.4]} 32... b4 {[%clk 0:00:54.7]} 33. Bc1 {[%clk 0:00:09.6]}
33... Bd4 {[%clk 0:00:41.7]} 34. Kd3 {[%clk 0:00:08.8]} 34... Bg1 {[%clk
0:00:41.8]} 35. h3 {[%clk 0:00:08.5]} 35... Kf6 {[%clk 0:00:40.8]} 36. a3 {[%clk
0:00:06.9]} 36... g5 {[%clk 0:00:35.7]} 37. axb4 {[%clk 0:00:06.3]} 37... axb4
{[%clk 0:00:35.1]} 38. Kc4 {[%clk 0:00:06.4]} 38... Bc5 {[%clk 0:00:34.6]} 39.
e5+ {[%clk 0:00:03.6]} 39... Kxe5 {[%clk 0:00:31.9]} 40. Bxg5 {[%clk 0:00:04.2]}
40... Ke4 {[%clk 0:00:31.1]} 41. Bf4 {[%clk 0:00:01.1]} 41... Kf3 {[%clk
0:00:29.5]} 42. Kd3 {[%clk 0:00:01.2]} 42... h5 {[%clk 0:00:27.7]} 43. h4 {[%clk
0:00:01.4]} 43... Kg4 {[%clk 0:00:20.5]} 44. Kc2 {[%clk 0:00:01.9]} 44... Kf5
{[%clk 0:00:19.6]} 45. Kd3 {[%clk 0:00:02.1]} 45... Kf6 {[%clk 0:00:18.1]} 46.
Bg5+ {[%clk 0:00:02]} 46... Kf5 {[%clk 0:00:16.4]} 47. Bf4 {[%clk 0:00:02]}
47... Kg4 {[%clk 0:00:17]} 48. Kc2 {[%clk 0:00:01.7]} 48... Kf3 {[%clk
0:00:17.9]} 49. Kd3 {[%clk 0:00:02.2]} 49... Kf2 {[%clk 0:00:17.6]} 50. Kc2
{[%clk 0:00:02.1]} 50... Ke2 {[%clk 0:00:17]} 51. Bg5 {[%clk 0:00:02.6]} 51...
Be3 {[%clk 0:00:15.4]} 52. Be7 {[%clk 0:00:02.6]} 52... Bc5 {[%clk 0:00:13.5]}
53. Bg5 {[%clk 0:00:03.2]} 53... Kf3 {[%clk 0:00:10.5]} 54. Bf4 {[%clk
0:00:03.2]} 54... Ke4 {[%clk 0:00:09.6]} 55. Bg5 {[%clk 0:00:03.2]} 55... Kxd5
{[%clk 0:00:09.8]} 56. Kd3 {[%clk 0:00:03.2]} 56... Ke6 {[%clk 0:00:09.1]} 57.
Bf4 {[%clk 0:00:03.6]} 57... d5 {[%clk 0:00:08.6]} 58. Bg5 {[%clk 0:00:01.7]}
58... Bd6 {[%clk 0:00:09]} 0-1

[Event "Early-Titled-Tuesday-Blitz-October-03-2023"]
[Site "Chess.com"]
[Date "2023.10.03"]
[Round "11"]
[White "valemava"]
[Black "Cambek64"]
[Result "0-1"]
[WhiteElo "2275"]
[BlackElo "2443"]
[TimeControl "180+1"]
[EndTime "10:08:49 PDT"]
[Termination "Cambek64 won on time"]

1. e4 {[%clk 0:02:52.7]} 1... e6 {[%clk 0:02:59.5]} 2. b3 {[%clk 0:02:51.8]}
2... d5 {[%clk 0:02:59.7]} 3. Bb2 {[%clk 0:02:52]} 3... dxe4 {[%clk 0:02:58.8]}
4. Nc3 {[%clk 0:02:51.8]} 4... Nf6 {[%clk 0:02:59.3]} 5. Qe2 {[%clk 0:02:51.2]}
5... Nbd7 {[%clk 0:02:52.1]} 6. Nxe4 {[%clk 0:02:45.9]} 6... Nxe4 {[%clk
0:02:51.2]} 7. Qxe4 {[%clk 0:02:46.8]} 7... Nf6 {[%clk 0:02:50.9]} 8. Qe2 {[%clk
0:02:46.4]} 8... Be7 {[%clk 0:02:47]} 9. d4 {[%clk 0:02:45]} 9... O-O {[%clk
0:02:47]} 10. O-O-O {[%clk 0:02:44.8]} 10... a5 {[%clk 0:02:46.2]} 11. a4 {[%clk
0:02:43.6]} 11... c6 {[%clk 0:02:40.8]} 12. g4 {[%clk 0:02:42.4]} 12... b5
{[%clk 0:02:40.9]} 13. axb5 {[%clk 0:02:36]} 13... cxb5 {[%clk 0:02:40.6]} 14.
Bg2 {[%clk 0:02:36.9]} 14... Nd5 {[%clk 0:02:36.6]} 15. Nf3 {[%clk 0:02:33.7]}
15... b4 {[%clk 0:02:30.5]} 16. Ne5 {[%clk 0:02:32.5]} 16... Bb7 {[%clk
0:02:28]} 17. Bxd5 {[%clk 0:01:56.9]} 17... Bxd5 {[%clk 0:02:26.2]} 18. Rhg1
{[%clk 0:01:55.8]} 18... a4 {[%clk 0:02:26.6]} 19. bxa4 {[%clk 0:01:37.3]} 19...
Rxa4 {[%clk 0:02:27]} 20. Rg3 {[%clk 0:01:37.6]} 20... Qa5 {[%clk 0:02:20.2]}
21. Rb3 {[%clk 0:01:29.7]} 21... Bxb3 {[%clk 0:02:08.5]} 22. cxb3 {[%clk
0:01:30.6]} 22... Ra1+ {[%clk 0:02:07.8]} 23. Kd2 {[%clk 0:01:17.3]} 23... Rxd1+
{[%clk 0:02:01.2]} 24. Kxd1 {[%clk 0:01:14.2]} 24... Qd5 {[%clk 0:01:57.1]} 25.
Nc4 {[%clk 0:01:10.1]} 25... Qh1+ {[%clk 0:01:50.3]} 26. Kc2 {[%clk 0:01:10.2]}
26... Qxh2 {[%clk 0:01:49.9]} 27. Qf3 {[%clk 0:01:10.4]} 27... Bh4 {[%clk
0:01:29.3]} 28. Nd2 {[%clk 0:01:09.1]} 28... Qxf2 {[%clk 0:01:27.5]} 29. Qb7
{[%clk 0:01:01.3]} 29... Qf4 {[%clk 0:01:10.6]} 30. Qxb4 {[%clk 0:00:58.7]}
30... Qxg4 {[%clk 0:01:09.4]} 31. Nc4 {[%clk 0:00:54.5]} 31... Qe4+ {[%clk
0:01:07.1]} 32. Kd1 {[%clk 0:00:47]} 32... Qb1+ {[%clk 0:01:01.3]} 33. Ke2
{[%clk 0:00:45.5]} 33... Qc2+ {[%clk 0:00:59.4]} 34. Kf3 {[%clk 0:00:43.7]}
34... Qd3+ {[%clk 0:00:56.5]} 35. Ne3 {[%clk 0:00:36.8]} 35... Bg5 {[%clk
0:00:53.7]} 36. Bc1 {[%clk 0:00:36.5]} 36... Rd8 {[%clk 0:00:41]} 37. d5 {[%clk
0:00:29.9]} 37... Bxe3 {[%clk 0:00:37.2]} 38. Bxe3 {[%clk 0:00:27.7]} 38...
Qxd5+ {[%clk 0:00:37.7]} 39. Kf2 {[%clk 0:00:26.7]} 39... h6 {[%clk 0:00:34.7]}
40. Qc3 {[%clk 0:00:20.4]} 40... Rb8 {[%clk 0:00:30.9]} 41. b4 {[%clk
0:00:19.8]} 41... Rb5 {[%clk 0:00:28]} 42. Bc5 {[%clk 0:00:19.8]} 42... Kh7
{[%clk 0:00:26.9]} 43. Qc2+ {[%clk 0:00:19.4]} 43... Qf5+ {[%clk 0:00:26.8]} 44.
Qxf5+ {[%clk 0:00:18.8]} 44... exf5 {[%clk 0:00:27.3]} 45. Ke3 {[%clk
0:00:19.7]} 45... g5 {[%clk 0:00:27.3]} 46. Kd4 {[%clk 0:00:20]} 46... Kg6
{[%clk 0:00:27.4]} 47. Kc4 {[%clk 0:00:20.3]} 47... Rb7 {[%clk 0:00:26.4]} 48.
Kd5 {[%clk 0:00:18.5]} 48... h5 {[%clk 0:00:26.5]} 49. Kc6 {[%clk 0:00:18.8]}
49... Rb8 {[%clk 0:00:25.2]} 50. b5 {[%clk 0:00:18.3]} 50... h4 {[%clk
0:00:24.5]} 51. Bd6 {[%clk 0:00:18.3]} 51... Rxb5 {[%clk 0:00:22.7]} 52. Kxb5
{[%clk 0:00:18.8]} 52... f4 {[%clk 0:00:22.7]} 53. Kc4 {[%clk 0:00:18.9]} 53...
h3 {[%clk 0:00:21.7]} 54. Kd4 {[%clk 0:00:18.4]} 54... h2 {[%clk 0:00:21.2]} 55.
Ke5 {[%clk 0:00:18.1]} 55... h1=Q {[%clk 0:00:19.8]} 56. Bc5 {[%clk 0:00:18.4]}
56... Qe1+ {[%clk 0:00:18.5]} 57. Kd5 {[%clk 0:00:18.3]} 57... f3 {[%clk
0:00:18.7]} 58. Bd6 {[%clk 0:00:15.9]} 58... f2 {[%clk 0:00:18.9]} 59. Bg3
{[%clk 0:00:16.6]} 59... f1=Q {[%clk 0:00:18.3]} 60. Bxe1 {[%clk 0:00:16.7]}
60... Qxe1 {[%clk 0:00:18.4]} 0-1